fUSD/lending_fUSD_20260429
["ID","MTS","AMOUNT","RATE_DAILY","PERIOD"]
[421308433,1777401354407,-151.0,0.00042543,120]
[421308434,1777401354457,-500.0,0.00042543,120]
[421308435,1777401354509,-646.65982734,0.00042543,120]
[421308436,1777401354561,-194.72792766,0.00042543,120]
[421308437,1777401354611,-200.0,0.00042543,120]
[421308438,1777401354659,-151.0,0.00042543,120]
[421308439,1777401354709,-50000.0,0.00042543,49]
[421308440,1777401354756,-670.58624095,0.00042543,120]
[421308441,1777401354802,-500.0,0.00042543,120]
[421308442,1777401354849,-201.93286099,0.00042543,120]
[421308443,1777401354896,-6888.0,0.00042543,120]
[421308444,1777401354942,-200.0,0.00042543,120]
[421308445,1777401354990,-151.0,0.00042543,120]
[421308446,1777401355037,-695.39793187,0.00042543,120]
[421308447,1777401355084,-500.0,0.00042543,120]
[421308448,1777401355131,-209.40437684,0.00042543,120]
[421308449,1777401355183,-7142.856,0.00042543,120]
[421308450,1777401355231,-200.0,0.00042543,120]
[421308451,1777401355280,-151.0,0.00042543,120]
[421308452,1777401355327,-721.12765535,0.00042543,120]
[421308453,1777401355375,-500.0,0.00042543,120]
[421308454,1777401355421,-209.40437684,0.00042543,120]
[421308455,1777401355470,-7407.141672,0.00042543,120]
[421308456,1777401355516,-200.0,0.00042543,120]
[421308457,1777401355564,-500.0,0.00042543,120]
[421308458,1777401355610,-747.8093786,0.00042543,120]
[421308459,1777401355658,-7681.20591386,0.00042543,120]
[421308460,1777401355706,-151.0,0.00042543,120]
[421308461,1777401355752,-200.0,0.00042543,120]
[421308462,1777401355798,-500.0,0.00042543,120]
[421308463,1777401355846,-775.47832561,0.00042543,120]
[421308464,1777401355895,-7965.41053268,0.00042543,120]
[421308465,1777401355943,-151.0,0.00042543,120]
[421308466,1777401355990,-200.0,0.00042543,120]
[421308467,1777401356037,-500.0,0.00042543,120]
[421308468,1777401356084,-804.17102365,0.00042543,120]
[421308469,1777401356132,-8260.13072239,0.00042543,120]
[421308470,1777401356181,-151.0,0.00042543,120]
[421308471,1777401356228,-200.0,0.00042543,120]
[421308472,1777401356278,-500.0,0.00042543,120]
[421308473,1777401356328,-833.92535153,0.00042543,120]
[421308474,1777401356378,-151.0,0.00042543,120]
[421308475,1777401356428,-8565.75555911,0.00042543,120]
[421308476,1777401356477,-200.0,0.00042543,120]
[421308477,1777401356532,-50000.0,0.00042543,50]
[421308478,1777401356582,-504.30722234,0.00042543,120]
[421308479,1777401356632,-500.0,0.00042543,120]
[421308480,1777401356680,-864.78058953,0.00042543,120]
[421308481,1777401356730,-151.0,0.00042543,120]
[421308482,1777401356778,-200.0,0.00042543,120]
[421308483,1777401356839,-8882.6885148,0.00042543,120]
[421308484,1777401356917,-151.0,0.00042543,120]
[421308485,1777401356986,-500.0,0.00042543,120]
[421308486,1777401357050,-500.0,0.00042543,120]
[421308487,1777401357113,-896.77747135,0.00042543,120]
[421308488,1777401357177,-151.0,0.00042543,120]
[421308489,1777401357238,-200.0,0.00042543,120]
[421308490,1777401357295,-9211.34798985,0.00042543,120]
[421308491,1777401357352,-156.587,0.00042543,120]
[421308492,1777401357414,-518.5,0.00042543,120]
[421308493,1777401357476,-500.0,0.00042543,120]
[421308494,1777401357540,-929.95823779,0.00042543,120]
[421308495,1777401357595,-151.0,0.00042543,120]
[421308496,1777401357656,-200.0,0.00042543,120]
[421308497,1777401357712,-9552.16786547,0.00042543,120]
[421308498,1777401357770,-162.380719,0.00042543,120]
[421308499,1777401357827,-537.6845,0.00042543,120]
[421308500,1777401357882,-500.0,0.00042543,120]
[421308501,1777401357937,-964.36669259,0.00042543,120]
[421308502,1777401358004,-200.0,0.00042543,120]
[421308503,1777401358066,-151.0,0.00042543,120]
[421308504,1777401358127,-9905.5980765,0.00042543,120]
[421308505,1777401358193,-168.3888056,0.00042543,120]
[421308506,1777401358252,-557.5788265,0.00042543,120]
[421308507,1777401358309,-500.0,0.00042543,120]
[421308508,1777401358364,-200.0,0.00042543,120]
[421308509,1777401358424,-151.0,0.00042543,120]
[421308510,1777401358482,-10272.10520533,0.00042543,120]
[421308511,1777401358539,-174.61919141,0.00042543,120]
[421308512,1777401358594,-578.20924308,0.00042543,120]
[421308513,1777401358658,-500.0,0.00042543,120]
[421308514,1777401358718,-500.0,0.00042543,120]
[421308515,1777401358777,-10652.17309792,0.00042543,120]
[421308516,1777401358832,-181.08010149,0.00042543,120]
[421308517,1777401358888,-508.30140247,0.00042543,120]
[421308518,1777401358943,-599.60298507,0.00042543,120]
[421308519,1777401358998,-500.0,0.00042543,120]
[421308520,1777401359059,-151.0,0.00042543,120]
[421308521,1777401359116,-187.78006525,0.00042543,120]
[421308522,1777401359174,-11046.30350255,0.00042543,120]
[421308523,1777401359230,-621.78829552,0.00042543,120]
[421308524,1777401359289,-151.0,0.00042543,120]
[421308525,1777401359346,-11455.01673214,0.00042543,120]
[421308526,1777401359401,-194.72792766,0.00042543,120]
[421308527,1777401359463,-644.79446246,0.00042543,120]
[421308528,1777401359520,-151.0,0.00042543,120]
[421308529,1777401359579,-201.93286099,0.00042543,120]
[421308530,1777401359645,-151.0,0.00042543,120]
[421308531,1777401359709,-668.65185757,0.00042543,120]
[421308532,1777401359772,-209.40437684,0.00042543,120]
[421308533,1777401359824,-509.62381887,0.00042543,120]
[421308534,1777401359871,-693.3919763,0.00042543,120]
[421308535,1777401359919,-151.0,0.00042543,120]
[421308536,1777401359967,-500.0,0.00042543,120]
[421308537,1777401360016,-217.15233878,0.00042543,120]
[421308538,1777401360068,-719.04747942,0.00042543,120]
[421308539,1777401360119,-500.0,0.00042543,120]
[421308540,1777401360171,-151.0,0.00042543,120]
[421308541,1777401360227,-225.18697532,0.00042543,120]
[421308542,1777401360279,-500.0,0.00042543,120]
[421308543,1777401360330,-156.587,0.00042543,120]
[421308544,1777401360381,-233.51889341,0.00042543,120]
[421308545,1777401360431,-500.0,0.00042543,120]
[421308546,1777401360481,-162.380719,0.00042543,120]
[421308547,1777401360532,-500.0,0.00042543,120]
[421308548,1777401360582,-242.15909246,0.00042543,120]
[421308549,1777401360634,-168.3888056,0.00042543,120]
[421308550,1777401360687,-500.0,0.00042543,120]
[421308551,1777401360739,-500.0,0.00042543,120]
[421308552,1777401360794,-251.11897888,0.00042543,120]
[421308553,1777401360846,-174.61919141,0.00042543,120]
[421308554,1777401360898,-500.0,0.00042543,120]
[421308555,1777401360949,-500.0,0.00042543,120]
[421308556,1777401361002,-260.4103811,0.00042543,120]
[421308557,1777401361054,-181.08010149,0.00042543,120]
[421308558,1777401361106,-500.0,0.00042543,120]
[421308559,1777401361157,-500.0,0.00042543,120]
[421308560,1777401361210,-270.0455652,0.00042543,120]
[421308561,1777401361262,-187.78006525,0.00042543,120]
[421308562,1777401361316,-500.0,0.00042543,120]
[421308563,1777401361369,-500.0,0.00042543,120]
[421308564,1777401361421,-280.03725112,0.00042543,120]
[421308565,1777401361473,-194.72792766,0.00042543,120]
[421308566,1777401362006,-500.0,0.00042543,120]
[421308567,1777401362100,-500.0,0.00042543,120]
[421308568,1777401362151,-290.39862941,0.00042543,120]
[421308569,1777401362202,-201.93286099,0.00042543,120]
[421308570,1777401362253,-500.0,0.00042543,120]
[421308571,1777401362304,-1000.0,0.00042543,30]
[421308572,1777401362354,-290.39862941,0.00042543,120]
[421308573,1777401362402,-209.40437684,0.00042543,120]
[421308574,1777401362451,-500.0,0.00042543,120]
[421308575,1777401362500,-1037.0,0.00042543,30]
[421308576,1777401362550,-217.15233878,0.00042543,120]
[421308577,1777401362599,-500.0,0.00042543,120]
[421308578,1777401362649,-1075.369,0.00042543,30]
[421308579,1777401362699,-225.18697532,0.00042543,120]
[421308580,1777401362749,-500.0,0.00042543,120]
[421308581,1777401362798,-1115.157653,0.00042543,30]
[421308582,1777401362847,-233.51889341,0.00042543,120]
[421308583,1777401362895,-500.0,0.00042543,120]
[421308584,1777401362944,-1156.41848616,0.00042543,30]
[421308585,1777401362991,-242.15909246,0.00042543,120]
[421308586,1777401363040,-500.0,0.00042543,120]
[421308587,1777401363088,-1199.20597015,0.00042543,30]
[421308588,1777401363140,-1030.0,0.00042543,120]
[421308589,1777401363189,-251.11897888,0.00042543,120]
[421308590,1777401363239,-500.0,0.00042543,120]
[421308591,1777401363290,-1243.57659104,0.00042543,30]
[421308592,1777401363339,-1068.11,0.00042543,120]
[421308593,1777401363391,-260.4103811,0.00042543,120]
[421308594,1777401363443,-1289.58892491,0.00042543,30]
[421308595,1777401363494,-500.0,0.00042543,120]
[421308596,1777401363543,-1000.0,0.00042543,120]
[421308597,1777401363594,-1107.63007,0.00042543,120]
[421308598,1777401363642,-270.0455652,0.00042543,120]
[421308599,1777401363693,-500.0,0.00042543,120]
[421308600,1777401363742,-1289.58892491,0.00042543,30]
[421308601,1777401363789,-1000.0,0.00042543,120]
[421308602,1777401363837,-1148.61238259,0.00042543,120]
[421308603,1777401363886,-270.0455652,0.00042543,120]
[421308604,1777401363933,-620.0,0.00042543,120]
[421308605,1777401363981,-1191.11104075,0.00042543,120]
[421308606,1777401364028,-1000.0,0.00042543,120]
[421308607,1777401364077,-1235.18214925,0.00042543,120]
[421308608,1777401364125,-1000.0,0.00042543,120]
[421308609,1777401364175,-642.94,0.00042543,120]
[421308610,1777401364224,-1280.88388878,0.00042543,120]
[421308611,1777401364274,-666.72878,0.00042543,120]
[421308612,1777401364324,-1000.0,0.00042543,120]
[421308613,1777401364373,-1328.27659266,0.00042543,120]
[421308614,1777401364422,-691.39774486,0.00042543,120]
[421308615,1777401364470,-1000.0,0.00042543,120]
[421308616,1777401364520,-1377.42282659,0.00042543,120]
[421308617,1777401364569,-716.97946142,0.00042543,120]
[421308618,1777401364617,-1000.0,0.00042543,120]
[421308619,1777401364666,-151.0,0.00042543,120]
[421308620,1777401364715,-1428.38747117,0.00042543,120]
[421308621,1777401364762,-743.50770149,0.00042543,120]
[421308622,1777401364810,-170.0,0.00042543,120]
[421308623,1777401364858,-1000.0,0.00042543,120]
[421308624,1777401364906,-151.0,0.00042543,120]
[421308625,1777401364956,-1481.23780761,0.00042543,120]
[421308626,1777401365003,-771.01748645,0.00042543,120]
[421308627,1777401365051,-176.29,0.00042543,120]
[421308628,1777401365098,-1000.0,0.00042543,120]
[421308629,1777401365148,-151.0,0.00042543,120]
[421308630,1777401365199,-1536.04360649,0.00042543,120]
[421308631,1777401365251,-505.415004,0.00042543,120]
[421308632,1777401365301,-799.54513345,0.00042543,120]
[421308633,1777401365350,-182.81273,0.00042543,120]
[421308634,1777401365400,-1000.0,0.00042543,120]
[421308635,1777401365450,-151.0,0.00042543,120]
[421308636,1777401365501,-172.636294,0.00042543,120]
[421308637,1777401365551,-1592.87721993,0.00042543,120]
[421308638,1777401365601,-829.12830338,0.00042543,120]
[421308639,1777401365651,-189.57680101,0.00042543,120]
[421308640,1777401365701,-151.0,0.00042543,120]
[421308641,1777401365750,-1651.81367706,0.00042543,120]
[421308642,1777401365799,-859.80605061,0.00042543,120]
[421308643,1777401365850,-196.59114265,0.00042543,120]
[421308644,1777401365901,-151.0,0.00042543,120]
[421308645,1777401365951,-1712.93078312,0.00042543,120]
[421308646,1777401366000,-891.61887448,0.00042543,120]
[421308647,1777401366051,-203.86501493,0.00042543,120]
[421308648,1777401366101,-151.0,0.00042543,120]
[421308649,1777401366152,-1776.30922209,0.00042543,120]
[421308650,1777401366203,-924.60877284,0.00042543,120]
[421308651,1777401366256,-211.40802048,0.00042543,120]
[421308652,1777401366307,-151.0,0.00042543,120]
[421308653,1777401366361,-1842.03266331,0.00042543,120]
[421308654,1777401366413,-958.81929743,0.00042543,120]
[421308655,1777401366465,-219.23011724,0.00042543,120]
[421308656,1777401366518,-151.0,0.00042543,120]
[421308657,1777401366571,-1910.18787185,0.00042543,120]
[421308658,1777401366627,-500.0,0.00042543,120]
[421308659,1777401366682,-151.0,0.00042543,120]
[421308660,1777401366735,-500.0,0.00042543,120]
[421308661,1777401366974,-313.65722566,0.00042543,120]
[421308662,1777401367028,-994.29561144,0.00042543,120]
[421308663,1777401367082,-219.23011724,0.00042543,120]
[421308664,1777401367138,-1980.86482311,0.00042543,120]
[421308665,1777401367192,-500.0,0.00042543,120]
[421308666,1777401367247,-151.0,0.00042543,120]
[421308667,1777401367302,-500.0,0.00042543,120]
[421308668,1777401367356,-500.0,0.00042543,120]
[421308669,1777401367408,-1031.08454906,0.00042543,120]
[421308670,1777401367462,-1980.86482311,0.00042543,120]
[421308671,1777401367515,-500.0,0.00042543,120]
[421308672,1777401367570,-500.0,0.00042543,120]
[421308673,1777401367626,-151.0,0.00042543,120]
[421308674,1777401367681,-362.61045447,0.00042543,120]
[421308675,1777401367734,-500.0,0.00042543,120]
[421308676,1777401367789,-257.53533423,0.00042543,120]
[421308677,1777401367845,-151.0,0.00042543,120]
[421308678,1777401367901,-151.0,0.00042543,120]
[421308679,1777401367957,-151.0,0.00042543,120]
[421308680,1777401368012,-500.0,0.00042543,60]
[421308681,1777401368067,-451.72562243,0.00042543,60]
[421308682,1777401368121,-151.0,0.00042543,120]
[421308683,1777401368174,-2345.0,0.00042543,120]
[421308684,1777401368227,-151.0,0.00042543,120]
[421308685,1777401368281,-501.75955108,0.00042543,120]
[421308686,1777401368333,-151.0,0.00042543,120]
[421308687,1777401368386,-503.180157,0.00042543,120]
[421308688,1777401368437,-151.0,0.00042543,120]
[421308689,1777401368489,-151.0,0.00042543,120]
[421308690,1777401368539,-500.0,0.00042543,120]
[421308691,1777401368593,-518.5,0.00042543,120]
[421308692,1777401368643,-537.6845,0.00042543,120]
[421308693,1777401368695,-557.5788265,0.00042543,120]
[421308694,1777401368744,-578.20924308,0.00042543,120]
[421308695,1777401368795,-151.0,0.00042543,120]
[421308696,1777401368845,-599.60298507,0.00042543,120]
[421308697,1777401368895,-156.587,0.00042543,120]
[421308698,1777401368946,-621.78829552,0.00042543,120]
[421308699,1777401368996,-162.380719,0.00042543,120]
[421308700,1777401369045,-644.79446246,0.00042543,120]
[421308701,1777401369094,-162.380719,0.00042543,120]
[421308702,1777401369143,-177.4358922,0.00042543,120]
[421308703,1777401369192,-644.79446246,0.00042543,120]
[421308704,1777401369243,-152.0,0.00042543,120]
[421308705,1777401369295,-152.0,0.00042543,120]
[421308706,1777401369347,-152.0,0.00042543,120]
[421308707,1777401369398,-152.0,0.00042543,120]
[421308708,1777401369449,-151.0,0.00042543,120]
[421308709,1777401369500,-152.0,0.00042543,120]
[421308710,1777401369551,-156.587,0.00042543,120]
[421308711,1777401369603,-152.0,0.00042543,120]
[421308712,1777401369655,-500.0,0.00042543,120]
[421308713,1777401369706,-162.380719,0.00042543,120]
[421308714,1777401369758,-500.0,0.00042543,120]
[421308715,1777401369807,-152.0,0.00042543,120]
[421308716,1777401369858,-282.33035635,0.00042543,120]
[421308717,1777401369908,-168.3888056,0.00042543,120]
[421308718,1777401369958,-152.0,0.00042543,120]
[421308719,1777401370008,-504.19394185,0.00042543,120]
[421308720,1777401370057,-174.61919141,0.00042543,120]
[421308721,1777401370107,-152.0,0.00042543,120]
[421308722,1777401370159,-151.0,0.00042543,120]
[421308723,1777401370210,-181.08010149,0.00042543,120]
[421308724,1777401370260,-151.0,0.00042543,120]
[421308725,1777401370312,-187.78006525,0.00042543,120]
[421308726,1777401370365,-582.81035958,0.00042543,120]
[421308727,1777401370417,-151.0,0.00042543,120]
[421308728,1777401370468,-194.72792766,0.00042543,120]
[421308729,1777401370520,-151.0,0.00042543,120]
[421308730,1777401370573,-201.93286099,0.00042543,120]
[421308731,1777401370627,-151.0,0.00042543,120]
[421308732,1777401370680,-500.0,0.00042543,120]
[421308733,1777401370732,-209.40437684,0.00042543,120]
[421308734,1777401370824,-500.0,0.00042543,120]
[421308735,1777401370877,-500.0,0.00042543,120]
[421308736,1777401370929,-500.0,0.00042543,120]
[421308737,1777401370980,-251.0,0.00042543,120]
[421308738,1777401371031,-500.0,0.00042543,120]
[421308739,1777401371082,-500.0,0.00042543,120]
[421308740,1777401371132,-151.0,0.00042543,120]
[421308741,1777401371185,-500.0,0.00042543,120]
[421308742,1777401371235,-217.15233878,0.00042543,120]
[421308743,1777401371286,-384.05783393,0.00042543,120]
[421308744,1777401371343,-262.73584405,0.00042543,120]
[421308745,1777401371395,-500.0,0.00042543,120]
[421308746,1777401371446,-151.0,0.00042543,120]
[421308747,1777401371496,-217.15233878,0.00042543,120]
[421308748,1777401371546,-500.0,0.00042543,120]
[421308749,1777401371597,-260.287,0.00042543,120]
[421308750,1777401371648,-167.02746063,0.00042543,120]
[421308751,1777401371706,-331.1,0.00042543,120]
[421308752,1777401371761,-151.0,0.00042543,120]
[421308753,1777401371815,-269.917619,0.00042543,120]
[421308754,1777401371868,-151.0,0.00042543,120]
[421308755,1777401371924,-279.9045709,0.00042543,120]
[421308756,1777401371975,-532.56186914,0.00042543,120]
[421308757,1777401372026,-290.26104003,0.00042543,120]
[421308758,1777401372077,-500.0,0.00042543,120]
[421308759,1777401372128,-301.00069851,0.00042543,120]
[421308760,1777401372178,-566.36785629,0.00042543,120]
[421308761,1777401372229,-312.13772435,0.00042543,120]
[421308762,1777401372280,-323.68682015,0.00042543,120]
[421308763,1777401372331,-323.68682015,0.00042543,120]
[421308764,1777401372381,-500.0,0.00042543,120]
[421308765,1777401372431,-461.8526609,0.00042543,120]
[421308766,1777401372482,-503.71513865,0.00042543,120]
[421308767,1777401372533,-500.0,0.00042543,120]
[421308768,1777401372584,-500.0,0.00042543,120]
[421308769,1777401372636,-500.0,0.00042543,120]
[421308770,1777401372688,-500.0,0.00042543,120]
[421308771,1777401372741,-500.0,0.00042543,120]
[421308772,1777401372791,-500.0,0.00042543,120]
[421308773,1777401372842,-500.0,0.00042543,120]
[421308774,1777401372892,-231.66510238,0.00042543,120]
[421308775,1777401372944,-500.0,0.00042543,120]
[421308776,1777401372994,-500.0,0.00042543,120]
[421308777,1777401373044,-500.0,0.00042543,120]
[421308778,1777401373094,-500.0,0.00042543,120]
[421308779,1777401373145,-500.0,0.00042543,120]
[421308780,1777401373198,-500.0,0.00042543,120]
[421308781,1777401373251,-500.0,0.00042543,120]
[421308782,1777401373301,-500.0,0.00042543,120]
[421308783,1777401373353,-500.0,0.00042543,120]
[421308784,1777401373404,-499.49476024,0.00042543,120]
[421308785,1777401373453,-545.7946461,0.00042543,120]
[421308786,1777401373504,-500.0,0.00042543,120]
[421308787,1777401373554,-634.99192539,0.00042543,120]
[421308788,1777401373605,-500.0,0.00042543,30]
[421308789,1777401373656,-500.0,0.00042543,30]
[421308790,1777401373708,-500.0,0.00042543,30]
[421308791,1777401373759,-500.0,0.00042543,30]
[421308792,1777401373810,-500.0,0.00042543,30]
[421308793,1777401373861,-598.58074631,0.00042543,30]
[421308794,1777401373912,-504.03377796,0.00042543,120]
[421308795,1777401373964,-500.0,0.00042543,120]
[421308796,1777401374014,-500.0,0.00042543,120]
[421308797,1777401374066,-473.16596171,0.00042543,120]
[421308798,1777401374117,-500.0,0.00042543,120]
[421308799,1777401374169,-348.80451858,0.00042543,120]
[421308800,1777401374221,-295.8743935,0.00042543,120]
[421308801,1777401374272,-640.46337679,0.00042543,120]
[421308802,1777401374322,-501.95557421,0.00042543,120]
[421308803,1777401374371,-505.04615036,0.00042543,120]
[421308804,1777401374421,-500.0,0.00042543,120]
[421308805,1777401374470,-584.19324667,0.00042543,120]
[421308806,1777401374520,-500.0,0.00042543,120]
[421308807,1777401374571,-376.73384242,0.00042543,120]
[421308808,1777401374622,-511.91556118,0.00042543,120]
[421308809,1777401374677,-50000.0,0.00042543,51]
[421308810,1777401374728,-538.89411405,0.00042543,120]
[421308811,1777401374778,-585.32879277,0.00042543,120]
[421308812,1777401374829,-500.0,0.00042543,120]
[421308813,1777401374880,-313.29862184,0.00042543,120]
[421308814,1777401375348,43672.70613418,0.00042557,30]
[421308815,1777401375405,6725.90123266,0.00042557,30]
[421308816,1777401375462,3548.16523524,0.00042557,30]
[421308817,1777401480108,-150.7112688,0.000161,30]
[421308818,1777401480170,-1107.0,0.000166,60]
[421308819,1777401480244,-267.57,0.00018,30]
[421308820,1777401480308,-1000.0,0.00019179,30]
[421308821,1777401480369,-213.18818644,0.0002,60]
[421308822,1777401480432,-500.0,0.00021918,120]
[421308823,1777401480486,-165.51,0.00022,120]
[421308824,1777401480542,-204.05329943,0.000221,30]
[421308825,1777401480600,-249.29632507,0.00022101,30]
[421308826,1777401480664,-500.0,0.00022164,120]
[421308827,1777401480721,-500.0,0.00022411,120]
[421308828,1777401480788,-204.05329943,0.00023476,60]
[421308829,1777401480844,-249.29632507,0.00023476,60]
[421308830,1777401480906,-204.05329943,0.00024851,60]
[421308831,1777401480964,-249.29632507,0.00024851,60]
[421308832,1777401481024,-204.05329943,0.00026226,120]
[421308833,1777401481080,-249.29632507,0.00026226,120]
[421308834,1777401481393,-217.8,0.000266,30]
[421308835,1777401481453,-1000.0,0.00027398,30]
[421308836,1777401481506,-1000.0,0.00027398,30]
[421308837,1777401481563,-10000000.0,0.00028,120]
[421308838,1777401481616,-700000.0,0.00028,120]
[421308839,1777401481673,-2347.24854411,0.00028067,82]
[421308840,1777401481725,-209.0,0.0002882,30]
[421308841,1777401481777,-175.92593135,0.000294,30]
[421308842,1777401481828,-15009.73136487,0.000295,120]
[421308843,1777401481880,-600.0,0.0003,30]
[421308844,1777401481931,-600.0,0.0003,30]
[421308845,1777401481983,-600.0,0.0003,30]
[421308846,1777401482034,-160.0,0.0003,120]
[421308847,1777401482085,-160.0,0.0003,120]
[421308848,1777401482149,-334.84999999,0.00030685,30]
[421308849,1777401482205,-209.0,0.0003084,30]
[421308850,1777401482259,-772.0,0.00031269,30]
[421308851,1777401482312,-212.0,0.00031269,30]
[421308852,1777401482366,-583.0,0.00031269,30]
[421308853,1777401482420,-900.0,0.00031269,30]
[421308854,1777401482477,-1150.0,0.00031269,30]
[421308855,1777401482532,-311.0,0.00031269,30]
[421308856,1777401482585,-248.0,0.00031269,30]
[421308857,1777401482638,-1376.0,0.00031269,30]
[421308858,1777401482690,-445.0,0.00031269,30]
[421308859,1777401482744,-409.0,0.00031269,30]
[421308860,1777401482798,-2727.0,0.00031269,30]
[421308861,1777401482853,-371.9688158,0.00031887,60]
[421308862,1777401482908,-200.4166695,0.00031887,60]
[421308863,1777401482960,-297.4037884,0.00031887,60]
[421308864,1777401483013,-702.5661644,0.00031887,60]
[421308865,1777401483064,-164.071661,0.00031887,60]
[421308866,1777401483115,-193.7803164,0.00031887,60]
[421308867,1777401483166,-167.8555444,0.00031887,60]
[421308868,1777401483221,-600.0,0.00032,45]
[421308869,1777401483275,-4269.82663995,0.00032,120]
[421308870,1777401483325,-160.0,0.00032,30]
[421308871,1777401483379,-160.0,0.00032,30]
[421308872,1777401483434,-772.0,0.00032269,30]
[421308873,1777401483487,-212.0,0.00032269,30]
[421308874,1777401483541,-583.0,0.00032269,30]
[421308875,1777401483595,-900.0,0.00032269,30]
[421308876,1777401483648,-1150.0,0.00032269,30]
[421308877,1777401483700,-311.0,0.00032269,30]
[421308878,1777401483751,-248.0,0.00032269,30]
[421308879,1777401483805,-1376.0,0.00032269,30]
[421308880,1777401483857,-445.0,0.00032269,30]
[421308881,1777401483909,-409.0,0.00032269,30]
[421308882,1777401483963,-2727.0,0.00032269,30]
[421308883,1777401484016,-334.85,0.00032493,30]
[421308884,1777401484067,-500.0,0.0003255,45]
[421308885,1777401484118,-500.0,0.0003255,45]
[421308886,1777401484169,-500.0,0.0003255,45]
[421308887,1777401484220,-235.94,0.00032603,120]
[421308888,1777401484272,-614.5525461,0.00032824,120]
[421308889,1777401484324,-890.57948568,0.00032849,120]
[421308890,1777401484375,-209.0,0.0003286,30]
[421308891,1777401484431,-333.39,0.0003312,120]
[421308892,1777401484484,-772.0,0.00033269,30]
[421308893,1777401484537,-212.0,0.00033269,30]
[421308894,1777401484590,-583.0,0.00033269,30]
[421308895,1777401484642,-900.0,0.00033269,30]
[421308896,1777401484694,-1150.0,0.00033269,30]
[421308897,1777401484744,-311.0,0.00033269,30]
[421308898,1777401484796,-248.0,0.00033269,30]
[421308899,1777401484848,-1376.0,0.00033269,30]
[421308900,1777401484900,-445.0,0.00033269,30]
[421308901,1777401484952,-409.0,0.00033269,30]
[421308902,1777401485006,-2727.0,0.00033269,30]
[421308903,1777401485060,-164.13959973,0.00033581,120]
[421308904,1777401485113,-772.0,0.00034269,30]
[421308905,1777401485167,-212.0,0.00034269,30]
[421308906,1777401485222,-583.0,0.00034269,30]
[421308907,1777401485277,-900.0,0.00034269,30]
[421308908,1777401485331,-1150.0,0.00034269,30]
[421308909,1777401485385,-311.0,0.00034269,30]
[421308910,1777401485437,-248.0,0.00034269,30]
[421308911,1777401485490,-1376.0,0.00034269,30]
[421308912,1777401485543,-445.0,0.00034269,30]
[421308913,1777401485598,-409.0,0.00034269,30]
[421308914,1777401485653,-2727.0,0.00034269,30]
[421308915,1777401485706,-334.85,0.00034301,30]
[421308916,1777401485759,-2605.32,0.00034326,30]
[421308917,1777401485812,-229.5,0.00034326,30]
[421308918,1777401485865,-1119.26,0.00034326,30]
[421308919,1777401485918,-7481.79,0.00034326,30]
[421308920,1777401485968,-247.13,0.00034326,30]
[421308921,1777401486024,-2520.42109676,0.00034389,96]
[421308922,1777401486077,-174.0,0.00034442,30]
[421308923,1777401486131,-150.0,0.00034466,30]
[421308924,1777401486184,-242.0,0.00034466,30]
[421308925,1777401486237,-267.57,0.000346,60]
[421308926,1777401486290,-411.53587614,0.00034622,120]
[421308927,1777401486343,-411.53587614,0.00034717,120]
[421308928,1777401486398,-411.53587614,0.00034811,120]
[421308929,1777401486451,-209.0,0.0003488,30]
[421308930,1777401486504,-411.53587614,0.00034906,120]
[421308931,1777401486556,-600.0,0.00035,60]
[421308932,1777401486608,-600.0,0.00035,60]